bitfinex-derivatives/quotes_ETHF0:USTF0_20251216
["timestamp","ask_amount","ask_price","bid_price","bid_amount"]
[1765884283224,0.00306727,2955.1,2955.0,12.14207379]
[1765884284525,2.48386727,2955.1,2955.0,12.14207379]
[1765884284728,0.00306727,2955.1,2955.0,12.14207379]
[1765884285422,3.2078,2955.8,2955.0,12.14207379]
[1765884285423,5.0189,2955.6,2955.5,6.6674]
[1765884285626,7.3389,2955.6,2955.5,5.1787]
[1765884285922,3.2078,2955.8,2955.7,5.1787]
[1765884286127,5.7378,2955.8,2955.7,5.1787]
[1765884286326,8.2186,2955.8,2955.7,5.1787]
[1765884286528,2.4808,2955.6,2955.5,6.6674]
[1765884286725,4.0624,2955.5,2955.4,2.5192]
[1765884287023,2.4808,2955.1,2955.0,8.93427379]
[1765884287220,2.4808,2955.1,2955.0,12.14207379]
[1765884287423,1.5816,2955.5,2955.0,12.14207379]
[1765884287626,2.4808,2955.2,2955.1,40.8]
[1765884287926,2.4808,2955.2,2955.1,5.1787]
[1765884288631,5.0189,2955.1,2955.0,4.78607379]
[1765884288928,5.0189,2954.9,2954.8,18.2932]
[1765884289122,2.28,2954.9,2954.6,2.5192]
[1765884289330,5.0189,2954.5,2954.4,8.3865]
[1765884289826,5.0189,2954.5,2954.4,5.727]
[1765884290026,9.0805,2954.5,2954.4,5.727]
[1765884290227,9.0805,2954.5,2954.4,3.2078]
[1765884292526,9.0805,2954.5,2954.4,8.3865]
[1765884292925,9.0805,2954.5,2954.4,5.727]
[1765884293132,5.0189,2954.3,2954.2,5.18128831]
[1765884293330,5.0189,2954.1,2954.0,0.00508139]
[1765884293537,7.2289,2954.1,2954.0,5.18378139]
[1765884294427,1.53,2954.1,2954.0,4.15618942]
[1765884294725,1.53,2954.1,2954.0,6.67538942]
[1765884295332,5.0189,2954.6,2954.5,5.1787]
[1765884295530,5.0708,2954.6,2954.5,6.6608]
[1765884295836,8.2267,2954.9,2954.8,5.1787]
[1765884296028,10.4467,2954.9,2954.8,5.1787]
[1765884297633,2.4808,2954.6,2954.5,2.5192]
[1765884297941,5.0189,2954.3,2954.2,10.82265379]
[1765884298138,2.4808,2954.3,2954.2,10.82265379]
[1765884298342,2.4808,2954.3,2954.2,10.65337379]
[1765884299334,7.1889,2954.3,2954.2,10.65337379]
[1765884299840,7.1889,2954.3,2954.2,8.3865]
[1765884300938,2.17,2954.3,2954.2,8.3865]
[1765884301236,2.17,2954.3,2954.2,10.65337379]
[1765884301431,8.2267,2954.9,2954.8,2.5192]
[1765884301634,10.7667,2954.9,2954.8,2.5192]
[1765884302346,10.7667,2954.9,2954.2,5.47467379]
[1765884302536,10.7667,2954.9,2954.2,3.2078]
[1765884302844,5.0189,2954.3,2954.2,8.3865]
[1765884303031,5.1808,2954.3,2954.2,8.3865]
[1765884303434,7.7189,2954.3,2954.2,8.3865]
[1765884303737,2.7,2954.3,2954.2,8.3865]
[1765884303938,5.0439,2954.3,2954.2,8.3865]
[1765884304138,7.4747,2954.3,2954.2,5.727]
[1765884304340,7.4747,2954.3,2954.2,3.2078]
[1765884304541,4.7747,2954.1,2954.0,0.00798942]
[1765884304841,10.6825,2954.1,2954.0,0.00798942]
[1765884305542,4.7747,2953.3,2953.2,5.6523]
[1765884305731,4.7747,2953.0,2952.9,64.5624]
[1765884305935,7.3947,2953.0,2952.9,23.7624]
[1765884306233,3.2078,2953.7,2953.4,2.4445]
[1765884306434,7.9655776,2953.7,2953.6,4.7846]
[1765884306638,10.3963776,2953.7,2953.6,4.7846]
[1765884306839,10.3963776,2953.7,2953.6,2.4445]
[1765884307346,4.7747,2953.5,2953.4,2.44861105]
[1765884307538,4.7639,2953.5,2953.4,4.78871105]
[1765884307739,0.13,2953.5,2953.4,4.78871105]
[1765884307945,7.9863776,2953.7,2953.6,4.7846]
[1765884308139,10.4763776,2953.7,2953.6,4.7846]
[1765884308448,4.7747,2953.5,2953.4,4.78871105]
[1765884308744,7.3847,2953.5,2953.4,4.78871105]
[1765884309345,7.3847,2953.5,2953.4,2.44861105]
[1765884309545,8.7354,2953.5,2953.4,0.00411105]
[1765884309745,8.7354,2953.5,2953.4,2.44861105]
[1765884310045,7.3847,2953.5,2953.4,4.78871105]
[1765884310640,8.7354,2953.5,2953.4,2.44861105]
[1765884311546,8.7354,2953.5,2953.4,4.78871105]
[1765884311935,2.61,2953.5,2953.4,4.78871105]
[1765884312238,0.0038776,2953.7,2953.6,4.7846]
[1765884312439,0.0038776,2953.7,2953.6,4.95392]
[1765884312636,0.0038776,2953.7,2953.6,14.16172]
[1765884312843,3.2078,2954.4,2954.3,4.7846]
[1765884312844,2.3439,2954.4,2954.3,4.7846]
[1765884313040,4.7747,2954.1,2954.0,7.9924]
[1765884313236,5.0339,2954.1,2954.0,7.9924]
[1765884313533,7.4647,2954.1,2954.0,7.9924]
[1765884313737,7.4670945,2954.1,2954.0,7.9924]
[1765884314237,7.4670945,2954.1,2954.0,3.2078]
[1765884314741,2.6923945,2954.1,2954.0,9.3195]
[1765884314947,0.0923945,2954.1,2954.0,9.3195]
[1765884315147,2.4623945,2954.1,2954.0,9.3195]
[1765884315348,7.2370945,2954.1,2954.0,3.2078]
[1765884315541,7.2370945,2954.1,2954.0,5.6523]
[1765884315848,7.2370945,2954.1,2954.0,2.4445]
[1765884316040,7.2370945,2954.1,2954.0,4.7846]
[1765884317349,2.3439,2953.8,2953.7,8.16171]
[1765884317542,7.2947,2953.8,2953.7,8.16171]
[1765884318547,4.8639,2953.8,2953.7,8.16171]
[1765884318943,2.3439,2953.8,2953.7,8.16171]
[1765884319249,4.7770945,2954.1,2954.0,4.7846]
[1765884319454,2.4523945,2954.1,2954.0,6.0175]
[1765884321251,0.0023945,2954.1,2954.0,6.0175]
[1765884322848,0.0023945,2954.1,2954.0,9.2253]
[1765884323546,2.3462945,2954.1,2954.0,9.2253]
[1765884323744,0.0023945,2954.1,2954.0,9.2253]
[1765884324754,2.3462945,2954.1,2954.0,9.2253]
[1765884324953,0.0023945,2954.1,2954.0,9.2253]
[1765884325848,4.7770945,2954.1,2954.0,9.2253]
[1765884326150,7.3770945,2954.1,2954.0,7.9924]
[1765884328458,4.7747,2953.8,2953.7,3.2078]
[1765884328755,4.7747,2953.6,2953.5,18.2175]
[1765884328958,7.3047,2953.6,2953.5,18.2175]
[1765884329153,7.3047,2953.6,2953.5,20.5576]
[1765884329451,7.3047,2953.6,2953.5,18.2175]
[1765884330358,7.3047,2953.6,2953.5,20.5576]
[1765884330745,4.8739,2953.6,2953.5,21.5154]
[1765884331947,7.3047,2953.6,2953.5,21.5154]
[1765884332249,7.3047,2953.6,2953.5,18.2175]
[1765884333352,7.3047,2953.6,2953.5,20.5576]
[1765884333948,7.3047,2953.6,2953.5,18.2175]
[1765884334550,7.3047,2953.6,2953.5,15.773]
[1765884334753,5.44,2953.5,2953.4,0.00411105]
[1765884335062,11.3178,2953.5,2953.4,0.00411105]
[1765884336755,4.248,2952.6,2952.5,5.3161]
[1765884337049,4.248,2952.6,2952.3,12.2707401]
[1765884337050,4.248,2952.4,2952.3,57.2838401]
[1765884337253,6.648,2952.4,2952.3,57.2838401]
[1765884337657,6.648,2952.4,2952.3,12.27509963]
[1765884338257,6.648,2952.4,2952.3,1.50609963]
[1765884339258,6.648,2952.4,2952.3,3.61439963]
[1765884339459,6.648,2952.4,2952.3,5.71919963]
[1765884339756,2.4,2952.4,2952.3,5.71919963]
[1765884340361,0.00508139,2952.6,2952.5,5.5212]
[1765884340554,2.35508139,2952.6,2952.5,7.79049887]
[1765884341459,6.60308139,2952.6,2952.5,5.5212]
[1765884341958,4.40888139,2952.6,2952.5,5.5212]
[1765884344559,2.35508139,2952.6,2952.5,5.5212]
[1765884345451,2.35508139,2952.6,2952.5,8.729]
[1765884346257,0.00508139,2952.6,2952.5,8.729]
[1765884352161,0.00508139,2952.6,2952.5,8.89838]
[1765884353464,0.00508139,2952.6,2952.5,49.69838]
[1765884354271,6.57308139,2952.6,2952.5,49.69838]
[1765884354462,2.32508139,2952.6,2952.5,8.89838]
[1765884355764,4.37888139,2952.6,2952.5,8.89838]
[1765884356764,2.32508139,2952.6,2952.5,8.89838]
[1765884357164,6.57308139,2952.6,2952.5,2.1083]
[1765884357365,6.57308139,2952.6,2952.5,4.2131]
[1765884357970,4.37888139,2952.6,2952.5,5.1403]
[1765884358275,2.32508139,2952.6,2952.5,8.3481]
[1765884358871,0.00508139,2952.6,2952.5,8.3481]
[1765884362374,6.43308139,2952.6,2952.5,8.3481]
[1765884362575,0.36508139,2952.6,2952.5,8.3481]
[1765884362878,0.00508139,2952.6,2952.5,8.3481]
[1765884363079,0.10508139,2952.6,2952.5,8.3481]
[1765884363279,2.52508139,2952.6,2952.5,8.3481]
[1765884363490,2.52508139,2952.6,2952.5,9.86199655]
[1765884363680,0.18508139,2952.6,2952.5,9.86199655]
[1765884364484,2.22508139,2952.6,2952.5,9.86199655]
[1765884365075,6.17728139,2952.6,2952.5,4.2131]
[1765884365280,4.27888139,2952.6,2952.5,6.73359655]
[1765884365488,2.44508139,2952.6,2952.5,6.73359655]
[1765884367187,1.94508139,2952.6,2952.5,6.90297655]
[1765884367388,3.2078,2953.2,2953.1,3.7286]
[1765884367590,5.6678,2953.2,2953.1,5.24249655]
[1765884367784,7.5995,2953.2,2953.1,3.7286]
[1765884367985,3.8301,2953.0,2952.9,3.7286]
[1765884368192,6.3401,2953.0,2952.9,3.7286]
[1765884369196,0.4,2953.0,2952.9,3.7286]
[1765884369598,7.0379,2953.2,2953.1,3.7286]
[1765884369803,9.7079,2953.2,2953.1,3.7286]
[1765884370299,3.8301,2952.9,2952.8,3.89796]
[1765884370805,1.9317,2952.9,2952.8,3.89796]
[1765884371297,3.8301,2952.9,2952.8,3.89796]
[1765884371698,1.9317,2952.9,2952.8,3.89796]
[1765884372307,6.1501,2952.9,2952.8,3.89796]
[1765884372507,4.4517,2952.9,2952.8,3.89796]
[1765884374107,6.3501,2952.9,2952.7,3.2078]
[1765884374304,3.8301,2952.6,2952.5,4.7352]
[1765884374603,4.2417,2952.6,2952.5,4.7352]
[1765884374804,2.31,2952.6,2952.5,4.7352]
[1765884376504,4.9574,2953.0,2952.9,3.7286]
[1765884376704,7.2274,2953.0,2952.9,3.7286]
[1765884377111,7.2274,2953.0,2952.9,1.8713]
[1765884377310,7.2274,2953.0,2952.5,1.0066]
[1765884377610,1.9317,2952.6,2952.5,4.7352]
[1765884378010,3.8301,2952.6,2952.5,4.7352]
[1765884378407,1.9317,2952.6,2952.5,4.7352]
[1765884378604,4.9574,2952.5,2952.4,1.8713]
[1765884378804,3.8301,2952.4,2952.3,1.50609963]
[1765884379010,6.2801,2952.4,2952.3,1.50609963]
[1765884381009,6.2801,2952.4,2952.3,5.23469963]
[1765884381216,4.3817,2952.4,2952.3,5.23469963]
[1765884381911,6.2801,2952.4,2952.3,5.23469963]
[1765884382116,4.3817,2952.4,2952.3,5.23469963]
[1765884383014,6.2801,2952.4,2952.3,5.23469963]
[1765884383214,6.2801,2952.4,2952.3,3.73295953]
[1765884383915,5.1395,2952.5,2952.4,3.7286]
[1765884384113,5.3095,2952.5,2952.4,3.7286]
[1765884384616,7.2695,2952.5,2952.4,3.7286]
[1765884385009,5.1395,2952.5,2952.4,3.7286]
[1765884385212,7.3395,2952.5,2952.4,3.7286]
[1765884386813,2.2,2952.5,2952.4,3.7286]
[1765884387021,3.2078,2952.8,2952.7,3.7286]
[1765884387211,3.7678,2952.8,2952.7,3.7286]
[1765884387517,3.8278,2952.8,2952.7,3.7286]
[1765884388019,7.3195,2952.8,2952.7,3.7286]
[1765884388317,9.2179,2952.8,2952.7,3.7286]
[1765884390824,3.8301,2952.7,2952.6,5.24263701]
[1765884391118,6.1601,2952.7,2952.6,5.24263701]
[1765884391516,2.33,2952.7,2952.6,5.24263701]
[1765884392317,6.1601,2952.7,2952.6,3.7286]
[1765884392620,6.1601,2952.7,2952.6,1.8713]
[1765884393022,6.1601,2952.7,2952.6,5.24263701]
[1765884393218,3.8301,2952.4,2952.3,1.87565953]
[1765884393424,6.2001,2952.4,2952.3,1.87565953]
[1765884393624,6.2001,2952.4,2952.3,1.88985953]
[1765884393822,6.2001,2952.4,2952.3,0.00435953]
[1765884394521,6.2001,2952.4,2952.3,1.88985953]
[1765884396127,6.2001,2952.4,2952.3,0.00435953]
[1765884396723,6.2001,2952.4,2952.3,1.88985953]
[1765884397525,6.2001,2952.4,2952.3,0.00435953]
[1765884397729,6.2001,2952.4,2952.3,1.88985953]
[1765884398731,6.2001,2952.4,2952.3,0.00435953]
[1765884399430,3.4554,2951.6,2951.5,3.2078]
[1765884399726,5.8654,2951.6,2951.5,3.2078]
[1765884400330,5.86883311,2951.6,2951.5,3.21044514]
[1765884401222,5.86883311,2951.6,2951.5,5.09594514]
[1765884401934,5.86883311,2951.6,2951.5,3.21044514]
[1765884402232,5.86883311,2951.6,2951.5,0.00264514]
[1765884403432,5.86883311,2951.6,2951.5,1.51806196]
[1765884404532,5.86883311,2951.6,2951.5,0.00264514]
[1765884409028,5.86883311,2951.6,2951.5,1.88814514]
[1765884409231,5.86883311,2951.6,2951.5,3.75344514]
[1765884409432,5.86883311,2951.6,2951.5,1.88814514]
[1765884409934,5.86883311,2951.6,2951.5,0.00264514]
[1765884410333,5.86883311,2951.6,2951.5,1.51806196]
[1765884412234,5.86883311,2951.6,2951.5,3.40356196]
[1765884412435,5.86883311,2951.6,2951.5,5.26886196]
[1765884412733,5.86883311,2951.6,2951.5,1.51806196]
[1765884413336,5.86883311,2951.6,2951.5,3.40356196]
[1765884413937,10.59204993,2951.6,2951.5,0.00264514]
[1765884415232,9.07663311,2951.6,2951.5,0.00264514]
[1765884417431,3.4554,2951.4,2951.3,0.00508139]
[1765884417634,4.5273,2951.0,2950.9,4.72321682]
[1765884417925,6.7373,2951.0,2950.9,3.2078]
[1765884418132,3.4554,2950.9,2950.8,1.51541682]
[1765884418433,5.9054,2950.9,2950.8,3.40091682]
[1765884418630,5.9054,2950.9,2950.8,3.40507162]
[1765884418837,4.1777,2950.9,2950.8,5.43985162]
[1765884419039,5.9054,2950.9,2950.8,5.43985162]
[1765884419940,5.9054,2950.9,2950.8,5.27037162]
[1765884420138,5.9054,2950.9,2950.8,3.7549548]
[1765884420441,5.9054,2950.9,2950.8,3.40507162]
[1765884421136,5.9054,2950.9,2950.8,1.8896548]
[1765884421336,3.2078,2951.3,2950.8,5.27037162]
[1765884421535,8.8632,2951.3,2951.2,3.40091682]
[1765884421745,6.6632,2951.3,2951.2,5.26621682]
[1765884421938,9.1432,2951.3,2951.2,5.26621682]
[1765884425546,9.1432,2951.3,2951.2,1.51541682]
[1765884425844,9.1432,2951.3,2951.2,4.71621682]
[1765884426546,5.9354,2951.3,2951.2,4.71621682]
[1765884428538,4.2077,2951.3,2951.2,4.71621682]
[1765884428738,3.21123311,2951.6,2951.5,4.2218]
[1765884428944,3.21123311,2951.6,2951.5,5.73721682]
[1765884429146,3.2078,2951.9,2951.7,3.2008]
[1765884429343,6.5564,2952.3,2952.2,1.6314]
[1765884429550,7.5864,2952.3,2952.2,4.71621682]
[1765884429946,4.3786,2952.3,2952.2,4.71621682]
[1765884430144,4.38158175,2952.3,2952.2,4.71621682]
[1765884431142,1.03298175,2952.3,2952.2,7.92401682]
[1765884431641,0.00298175,2952.3,2952.2,7.92401682]
[1765884432852,7.6283,2953.0,2952.9,3.2008]
[1765884433052,9.8483,2953.0,2952.9,3.14681682]
[1765884433254,6.6405,2953.0,2952.9,3.14681682]
[1765884433450,6.6405,2953.0,2952.9,1.51541682]
[1765884433846,6.64345254,2953.0,2952.9,1.51817895]
[1765884434655,6.64345254,2953.0,2952.9,3.14957895]
[1765884435756,6.64345254,2953.0,2952.9,1.51817895]
[1765884437156,6.64345254,2953.0,2952.9,3.14957895]
[1765884437657,2.22295254,2953.0,2952.9,6.23439577]
[1765884437852,4.3025,2953.5,2953.4,3.2008]
[1765884438154,5.7186,2953.5,2953.4,4.71621682]
[1765884438355,5.7186,2953.5,2953.4,7.92401682]
[1765884438554,6.6725,2953.5,2953.4,7.92401682]
[1765884438756,6.6725,2953.5,2953.4,6.35461682]
[1765884438948,6.6762693,2953.5,2953.4,7.92401682]
[1765884439658,5.7223693,2953.5,2953.4,7.92401682]
[1765884441052,3.9920693,2953.5,2953.4,7.92401682]
[1765884441256,3.3486,2954.0,2953.9,3.2008]
[1765884441552,3.3486,2954.5,2954.4,1.5694]
[1765884441860,4.9686,2954.5,2954.4,4.71621682]
[1765884442059,4.9686,2954.5,2954.4,4.71282553]
[1765884442249,4.97222404,2954.5,2954.4,4.71282553]
[1765884442651,3.24192404,2954.5,2954.4,4.71282553]
[1765884442857,1.62362404,2954.5,2954.4,4.71282553]
[1765884443360,1.62362404,2954.5,2954.4,3.2008]
[1765884443659,4.97222404,2954.5,2954.4,3.2008]
[1765884445258,5.92612404,2954.5,2954.4,1.6314]
[1765884445554,5.92612404,2954.5,2954.4,3.2008]
[1765884449061,5.92612404,2954.5,2954.3,3.2078]
[1765884449062,3.3486,2954.4,2954.3,3.2078]
[1765884449253,3.3486,2953.8,2953.7,3.2008]
[1765884449452,3.3486,2953.8,2953.7,6.4086]
[1765884449453,3.9983,2953.8,2953.7,6.4086]
[1765884449657,4.30612404,2954.5,2954.4,1.6314]
[1765884449853,4.63612404,2954.5,2954.4,1.6314]
[1765884450160,3.3486,2954.4,2954.3,4.8392]
[1765884450355,5.6086,2954.4,2954.3,4.8392]
[1765884450556,5.6086,2954.4,2954.3,3.2078]
[1765884457266,3.4937,2954.1,2954.0,3.2078]
[1765884457563,1.007,2954.0,2953.7,3.2078]
[1765884457866,3.4937,2953.8,2953.7,3.2078]
[1765884458066,6.1737,2953.8,2953.7,3.2078]
[1765884464666,6.1737,2953.8,2953.1,0.16935]
[1765884464870,3.4462,2953.7,2953.6,5.018]
[1765884465063,6.1162,2953.7,2953.6,6.7867]
[1765884465864,6.1162,2953.7,2953.6,5.018]
[1765884466059,6.1162,2953.7,2953.6,6.7867]
[1765884467773,4.8362,2953.7,2953.6,6.7867]
[1765884468274,1.39,2953.7,2953.6,6.7867]
[1765884468665,4.432374,2954.3,2954.2,1.8102]
[1765884468865,6.692374,2954.3,2954.2,3.5789]
[1765884469772,3.4462,2954.1,2954.0,6.53104539]
[1765884469974,6.952374,2954.1,2954.0,8.29974539]
[1765884470861,5.169274,2954.1,2954.0,9.21914539]
[1765884471062,4.40372404,2954.5,2954.4,3.5789]
[1765884471261,7.77065899,2954.5,2954.4,1.8102]
[1765884472570,7.77065899,2954.5,2954.0,5.64024539]
[1765884472767,4.43313495,2954.4,2954.3,1.8102]
[1765884473076,6.88313495,2954.4,2954.3,1.8102]
[1765884473466,6.88313495,2954.4,2954.3,5.018]
[1765884473665,6.88313495,2954.4,2954.3,6.7867]
[1765884474666,6.88313495,2954.4,2954.3,5.018]
[1765884475366,6.88313495,2954.4,2954.3,6.7867]
[1765884476166,6.88313495,2954.4,2954.3,8.29974539]
[1765884477776,5.8962,2954.4,2954.3,8.29974539]
[1765884477977,6.8834761,2954.4,2954.3,8.29974539]
[1765884478372,5.8962,2954.4,2954.3,8.29974539]
[1765884479681,2.45,2954.4,2954.3,8.29974539]
[1765884480178,4.1131,2954.4,2954.3,8.29974539]
[1765884480577,5.8962,2954.4,2954.3,3.2078]
[1765884480980,5.8962,2954.4,2954.3,5.018]
[1765884481576,5.8962,2954.4,2954.3,6.7867]
[1765884481973,4.1131,2954.4,2954.3,8.29974539]
[1765884482272,5.8962,2954.4,2954.3,6.53104539]
[1765884482671,5.8962,2954.4,2954.3,8.29974539]
[1765884483074,5.8962,2954.4,2954.3,5.018]
[1765884483269,5.8962,2954.4,2954.3,3.2078]
[1765884484082,5.8962,2954.4,2954.3,6.5478]
[1765884484285,4.1131,2954.4,2954.3,6.5478]
[1765884484474,5.6506,2954.4,2954.3,6.5478]
[1765884486487,2.45,2954.4,2954.3,6.5478]
[1765884486884,3.0672,2955.0,2954.9,3.1905]
[1765884487079,4.0697,2955.0,2954.9,7.91134539]
[1765884487382,1.18,2955.0,2954.9,7.91134539]
[1765884487683,4.19406675,2955.8,2954.9,7.91134539]
[1765884487884,1.5297,2955.0,2954.9,7.91134539]
[1765884488078,3.0672,2955.0,2954.9,7.91134539]
[1765884488280,6.6094,2955.0,2954.9,3.2078]
[1765884490382,3.0672,2954.8,2954.7,0.00508139]
[1765884490578,5.7172,2954.8,2954.7,0.00508139]
[1765884495186,0.6653,2953.6,2953.5,0.9171]
[1765884495385,7.05257436,2953.6,2953.5,0.9171]
[1765884495885,7.05257436,2953.6,2953.5,4.1076]
[1765884496582,6.38727436,2953.6,2953.5,4.1076]
[1765884497883,2.51417436,2953.6,2953.5,7.3154]
[1765884498683,4.19209105,2954.9,2954.1,3.1905]
[1765884498887,1.5297,2954.3,2954.2,4.70354539]
[1765884499087,4.0197,2954.3,2954.2,4.70354539]
[1765884499387,5.5572,2954.3,2954.2,4.70354539]
[1765884499787,5.56061431,2954.3,2954.2,4.70354539]
[1765884501089,4.02311431,2954.3,2954.2,4.70354539]
[1765884501686,5.56061431,2954.3,2954.2,4.70354539]
[1765884502185,4.02311431,2954.3,2954.2,4.70354539]
[1765884503594,1.68226539,2955.3,2954.2,4.70354539]
[1765884503595,0.9822,2956.0,2954.9,3.1905]
[1765884503798,0.9822,2956.0,2954.5,0.9171]
[1765884503799,3.2872,2956.0,2955.9,4.70354539]
[1765884504000,3.2872,2956.0,2955.9,3.17374539]
[1765884504001,6.5794,2956.0,2955.9,3.17374539]
[1765884504288,3.0672,2955.4,2955.3,6.38154539]
[1765884504494,5.3472,2955.4,2955.3,7.91134539]
[1765884504699,3.81289316,2955.4,2955.3,7.91518447]
[1765884504993,2.28319316,2955.4,2955.3,7.91518447]
[1765884505498,2.28319316,2955.4,2955.3,6.40213908]
[1765884507296,4.0494,2956.0,2955.9,1.6607]
[1765884507500,6.3294,2956.0,2955.9,1.6607]
[1765884508200,6.3294,2956.0,2955.9,3.1905]
[1765884508389,6.33195231,2956.0,2955.9,3.1905]
[1765884513299,6.33195231,2956.0,2955.9,1.6607]
[1765884513996,4.225,2955.7,2955.6,7.4905]
[1765884514202,6.645,2955.7,2955.6,7.4905]
[1765884514404,6.645,2955.7,2955.6,5.4428]
[1765884514602,6.645,2955.7,2955.6,3.2078]
[1765884514802,6.675,2955.7,2955.6,3.2078]
[1765884515799,6.675,2955.7,2955.6,5.305]
[1765884516000,6.675,2955.7,2955.6,3.2078]
[1765884517507,6.675,2955.7,2955.6,5.305]
[1765884518007,6.675,2955.7,2955.6,3.2078]
[1765884520208,6.675,2955.7,2955.6,5.305]
[1765884520910,6.675,2955.7,2955.6,3.2078]
[1765884521509,2.45,2955.7,2955.6,7.3527]
[1765884521812,6.6471,2955.7,2955.6,3.2078]
[1765884522409,6.6471,2955.7,2955.6,5.305]
[1765884522709,6.6471,2955.7,2955.6,3.2078]
[1765884522907,0.98475231,2956.0,2955.6,3.2078]
[1765884522908,2.05655231,2956.0,2955.9,4.1449]
[1765884523204,0.09255231,2956.0,2955.9,9.92091417]
[1765884523410,0.00255231,2956.0,2955.9,9.92091417]
[1765884523811,0.00255231,2956.0,2955.9,7.3527]
[1765884525513,0.00255231,2956.0,2955.9,8.86298282]
[1765884527318,3.2078,2956.8,2956.7,4.1449]
[1765884527611,5.7178,2956.8,2956.7,5.65435744]
[1765884527804,2.054,2957.3,2957.2,4.1449]
[1765884528004,6.8971,2957.3,2957.2,5.65435744]
[1765884528218,6.90046622,2957.3,2957.2,5.65435744]
[1765884528512,4.1971,2957.2,2957.1,0.00507254]
[1765884528718,6.4671,2957.2,2957.1,0.00507254]
[1765884529013,6.4671,2957.2,2957.1,1.51452998]
[1765884529514,6.4671,2957.2,2957.1,0.00507254]
[1765884530511,2.27,2957.2,2957.1,4.14997254]
[1765884530719,2.05736622,2957.3,2957.2,4.1449]
[1765884530919,4.75736622,2957.3,2957.2,4.1449]
[1765884531218,4.1971,2957.2,2957.1,0.00507254]
[1765884531417,6.4971,2957.2,2957.1,0.00507254]
[1765884532220,6.4971,2957.2,2957.1,2.10227254]
[1765884534924,4.354,2957.2,2957.1,4.14997254]
[1765884535716,6.4971,2957.2,2957.1,7.35777254]
[1765884536716,2.3,2957.2,2957.1,7.35777254]
[1765884536923,4.354,2957.2,2957.1,7.35777254]
[1765884537424,6.4971,2957.2,2957.1,7.35777254]
[1765884538822,6.4971,2957.2,2957.1,3.21287254]
[1765884539123,2.3,2957.2,2957.1,7.35777254]
[1765884539323,2.05736622,2957.3,2957.2,4.1449]
[1765884539515,6.48046622,2957.3,2957.2,4.1449]
[1765884540324,4.1971,2957.2,2957.1,3.21287254]
[1765884540626,6.5171,2957.2,2957.1,3.21287254]
[1765884541127,6.5171,2957.2,2957.1,5.31007254]
[1765884541834,6.5171,2957.2,2957.1,7.35777254]
[1765884542123,6.5171,2957.2,2957.1,5.31007254]
[1765884543325,6.5171,2957.2,2957.1,7.35777254]
[1765884545025,4.5942,2957.2,2957.1,7.58067254]
[1765884545225,6.7983,2957.2,2957.1,7.58067254]
[1765884546223,6.7983,2957.2,2957.1,5.31007254]
[1765884546531,6.7983,2957.2,2957.1,5.41117254]
[1765884546924,6.7983,2957.2,2957.1,3.21287254]
[1765884547131,6.7983,2957.2,2957.1,0.00507254]
[1765884551934,6.7983,2957.2,2957.1,1.51484265]
[1765884552237,6.7983,2957.2,2957.1,3.71314265]
[1765884552934,6.7983,2957.2,2957.1,2.20337254]
[1765884553236,7.78002729,2957.2,2957.1,0.00507254]
[1765884558437,6.7983,2957.2,2957.1,0.00507254]
[1765884561742,6.7983,2957.2,2957.1,3.71314265]
[1765884562543,6.7983,2957.2,2957.1,1.51484265]
[1765884563436,6.7983,2957.2,2957.1,0.00507254]
[1765884564538,6.7983,2957.2,2957.1,7.68177254]
[1765884564937,6.7983,2957.2,2957.1,9.19154265]
[1765884566441,6.7983,2957.2,2957.1,3.21287254]
[1765884568845,4.4783,2956.8,2956.0,1.3813]
[1765884569041,4.4783,2956.3,2956.2,7.6767]
[1765884569248,6.6783,2956.3,2956.2,7.6767]
[1765884570042,2.2,2956.3,2956.2,9.18647011]
[1765884570243,0.00504304,2956.5,2956.4,4.4689]
[1765884570452,4.95924304,2956.5,2956.4,5.97867011]
[1765884570843,2.68504304,2956.5,2956.4,5.97867011]
[1765884571448,4.95924304,2956.5,2956.4,5.97867011]
[1765884572845,2.68504304,2956.5,2956.4,5.97867011]
[1765884573050,2.68504304,2956.5,2956.4,7.48844022]
[1765884573548,2.68504304,2956.5,2956.4,5.97867011]
[1765884577054,2.68504304,2956.5,2956.4,6.14783011]
[1765884577356,1.73504304,2956.5,2956.4,7.65760022]
[1765884578055,0.00504304,2956.5,2956.4,7.65760022]
[1765884581255,0.00504304,2956.5,2956.4,7.65722018]
[1765884581656,4.30686622,2957.3,2957.2,2.1771]
[1765884581857,4.3035,2957.0,2956.9,7.5566]
[1765884582055,2.26,2957.0,2956.9,9.23531009]
[1765884582359,0.00336622,2957.3,2957.2,4.3488]
[1765884582558,4.79446622,2957.3,2957.2,9.06618009]
[1765884583051,2.62336622,2957.3,2957.2,9.06618009]
[1765884583259,0.00336622,2957.3,2957.2,10.57576018]
[1765884583853,0.00336622,2957.3,2957.2,9.06618009]
[1765884584053,0.00336622,2957.3,2957.2,7.5566]
[1765884584250,0.00336622,2957.3,2957.2,9.06618009]
[1765884584453,0.00336622,2957.3,2957.2,9.23529009]
[1765884585454,0.00336622,2957.3,2957.2,9.5056056]
[1765884585864,0.00336622,2957.3,2957.2,9.23529009]
[1765884586762,0.00336622,2957.3,2957.2,9.49931982]
[1765884587860,2.24903931,2958.5,2958.1,2.1771]
[1765884587861,5.3789,2958.2,2958.1,2.1771]
[1765884588163,10.1713,2958.2,2958.1,5.85838009]
[1765884588752,10.1713,2958.2,2958.1,5.86087004]
[1765884588951,10.17407143,2958.2,2958.1,5.86087004]
[1765884589354,16.17407143,2958.2,2958.1,0.00248995]
[1765884592771,12.96627143,2958.2,2958.1,0.00248995]
[1765884593165,6.96627143,2958.2,2958.1,0.00248995]
[1765884595266,6.96627143,2958.2,2958.1,2.17958995]
[1765884595467,6.96627143,2958.2,2958.1,0.00248995]
[1765884595973,6.96627143,2958.2,2958.1,2.17958995]
[1765884596173,6.96627143,2958.2,2958.1,0.00248995]
[1765884596378,6.96627143,2958.2,2958.1,2.17958995]
[1765884596564,2.66277143,2958.2,2958.1,4.35128995]
[1765884596770,6.96627143,2958.2,2958.1,4.35128995]